fUSD/lending_fUSD_20250603
["ID","MTS","AMOUNT","RATE_DAILY","PERIOD"]
[363883009,1748908843390,150.0,0.00019,2]
[363883020,1748908956496,-151.56,0.00019178,2]
[363883035,1748909100943,-253.35649125,0.00019109,2]
[363883037,1748909105653,-161.02097606,0.00019109,2]
[363883038,1748909111106,-222.81,0.00019109,2]
[363883039,1748909113861,-167.45125612,0.00019109,2]
[363883044,1748909151452,-250.0,0.00019109,2]
[363883045,1748909154199,-170.52529554,0.00019109,2]
[363883047,1748909190313,254.76,0.00024913,120]
[363883053,1748909398379,1304.21,0.00017152,2]
[363883054,1748909429979,-164.95275021,0.00019054,2]
[363883055,1748909431785,-164.98618822,0.00019054,2]
[363883068,1748909432007,-224.59106157,0.00019054,2]
[363883069,1748909432017,-154.30893843,0.00019092,2]
[363883070,1748909432040,-1456.65106157,0.00019092,2]
[363883071,1748909432049,-200.0,0.00019093,2]
[363883072,1748909432059,-1096.98598103,0.00019109,2]
[363883073,1748909432068,-200.0,0.00019118,2]
[363883074,1748909432078,-348.44,0.00019178,2]
[363883075,1748909432088,-223.89133408,0.00019178,2]
[363883076,1748909432097,-167.15,0.00019178,2]
[363883077,1748909432107,-1304.21,0.00019416,2]
[363883078,1748909432116,-1000.0,0.00019893,2]
[363883079,1748909432126,-300.0,0.00019898,2]
[363883080,1748909432135,-1200.0,0.00019898,2]
[363883081,1748909432144,-300.0,0.00019899,2]
[363883082,1748909432154,-154.39739374,0.000199,2]
[363883083,1748909432164,-929.64005092,0.000199,2]
[363883084,1748909432174,-3188.84527659,0.000199,2]
[363883085,1748909432195,-30.22185192,0.000199,2]
[363883086,1748909432205,-205.92208483,0.000199,2]
[363883087,1748909432217,-205.92208482,0.0001991,2]
[363883088,1748909432228,-10567.0,0.00019913,2]
[363883090,1748909432238,-254.76,0.00019931,2]
[363883092,1748909432247,-600.80875396,0.00019973,2]
[363883094,1748909432256,-500.0,0.00019973,2]
[363883096,1748909432265,-194.73000401,0.00019973,2]
[363883097,1748909432275,-542.48861583,0.00019973,2]
[363883099,1748909432283,-595.71329709,0.00019973,2]
[363883100,1748909432291,-507.15371216,0.00019973,2]
[363883101,1748909432300,-502.50205258,0.00019973,2]
[363883102,1748909432310,-462.51433961,0.00019973,2]
[363883103,1748909432319,-501.50228217,0.00019973,2]
[363883104,1748909432329,-500.0,0.00019973,2]
[363883105,1748909432339,-500.0,0.00019973,2]
[363883106,1748909432349,-500.0,0.00019973,2]
[363883107,1748909432359,-500.0,0.00019973,2]
[363883108,1748909432368,-204.96073798,0.00019973,2]
[363883109,1748909432378,-500.0,0.00019973,2]
[363883110,1748909432388,-500.0,0.00019973,2]
[363883111,1748909432398,-500.0,0.00019973,2]
[363883112,1748909432408,-175.82066896,0.00019973,2]
[363883113,1748909432418,-500.0,0.00019973,2]
[363883114,1748909432427,-151.0,0.00019988,2]
[363883115,1748909432436,-1885.36,0.0001999,2]
[363883116,1748909432446,-1885.36,0.0001999,2]
[363883117,1748909432455,-1885.36,0.0001999,2]
[363883118,1748909432465,-1885.36,0.0001999,2]
[363883119,1748909432474,-1885.36,0.0001999,2]
[363883120,1748909432483,-150.0,0.00019999,2]
[363883121,1748909432493,-1000.0,0.00019999,2]
[363883122,1748909432503,-781.096,0.00019999,2]
[363883123,1748909432512,-66722.73483965,0.0002,2]
[363883124,1748909432532,-9543.67144484,0.0002,2]
[363883125,1748909432543,-38820.9895601,0.0002,2]
[363883128,1748909432570,-261608.1469423,0.0002,2]
[363883137,1748909439202,-10594.0,0.0002,2]
[363883140,1748909439213,-460.06763152,0.0002,2]
[363883242,1748909440221,-155622.04561469,0.0002,2]
[363883244,1748909440232,-871.984808,0.0002,2]
[363883246,1748909440243,-1202.38067405,0.0002,2]
[363883249,1748909440255,-640.08419563,0.0002,2]
[363883251,1748909440266,-505.0903562,0.0002,2]
[363883261,1748909440355,-26884.33998509,0.0002,2]
[363883263,1748909440367,-13385.36916091,0.0002,2]
[363883265,1748909440378,-27647.94615677,0.0002,2]
[363883270,1748909440411,-581.1038867,0.0002,2]
[363883272,1748909440422,-1318.60590958,0.0002,2]
[363883274,1748909440433,-3121.8680359,0.0002,2]
[363883276,1748909440445,-394.20200095,0.0002,2]
[363883279,1748909440456,-12014.77284846,0.0002,2]
[363883281,1748909440466,-314454.68638273,0.0002,2]
[363883283,1748909440477,-142756.48810483,0.0002,2]
[363883285,1748909440487,-89316.68485083,0.0002,2]
[363883287,1748909440496,-1000.0,0.0002,2]
[363883289,1748909440506,-23425.22,0.0002,2]
[363883291,1748909440515,-167.89277831,0.0002,2]
[363883293,1748909440524,-894.72519573,0.0002,2]
[363883295,1748909440533,-715.21471745,0.0002,2]
[363883297,1748909440542,-300.0,0.0002,2]
[363883299,1748909440552,-500.0,0.0002,2]
[363883301,1748909440562,-150.0,0.0002,2]
[363883303,1748909440571,-150.0,0.0002,2]
[363883305,1748909440581,-150.0,0.0002,2]
[363883307,1748909440591,-212.61835403,0.0002,2]
[363883309,1748909440601,-150.0,0.0002,2]
[363883311,1748909440611,-150.0,0.0002,2]
[363883313,1748909440621,-150.0,0.0002,2]
[363883315,1748909440631,-52941.40844659,0.0002,2]
[363883317,1748909440641,-150.0,0.0002,2]
[363883319,1748909440651,-150.0,0.0002,2]
[363883321,1748909440660,-150.0,0.0002,2]
[363883323,1748909440671,-150.0,0.0002,2]
[363883325,1748909440681,-189.12455397,0.0002,2]
[363883339,1748909440820,-0.0016635,0.0002,2]
[363883569,1748909443121,-98.31056995,0.00019999,2]
[363883572,1748909443136,-201.68943005,0.00019999,2]
[363883574,1748909443146,-300.34401328,0.0002,2]
[363883576,1748909443157,-500.0,0.0002,2]
[363883578,1748909443173,-4721.32358925,0.0002,2]
[363883580,1748909443183,-5710.79383,0.0002,2]
[363883583,1748909443192,-845.83378037,0.0002,2]
[363883586,1748909443211,-665.159998,0.0002,2]
[363883588,1748909443222,-892.0,0.0002,2]
[363883856,1748909446132,-563.6249975,0.0002,2]
[363883862,1748909446181,-608.77816062,0.0002,2]
[363883864,1748909446193,-2135.39689351,0.0002,2]
[363883866,1748909446203,-9022.76213966,0.0002001,2]
[363883868,1748909446214,-5772.0,0.0002001,2]
[363883870,1748909446224,-500.0,0.00020027,2]
[363883872,1748909446234,-150.0,0.00020027,2]
[363883874,1748909446244,-150.0,0.00020027,2]
[363883876,1748909446254,-150.0,0.00020027,2]
[363883878,1748909446263,-150.0,0.00020027,2]
[363883880,1748909446273,-150.0,0.00020027,2]
[363883882,1748909446283,-150.0,0.00020027,2]
[363883884,1748909446293,-151.0,0.00020043,2]
[363883886,1748909446302,-500.0,0.00020055,2]
[363883888,1748909446312,-200.0,0.00020055,2]
[363883890,1748909446322,-150.0,0.00020055,2]
[363883892,1748909446332,-150.0,0.00020055,2]
[363883895,1748909446341,-200.0,0.00020055,2]
[363883897,1748909446351,-200.0,0.00020055,2]
[363883899,1748909446361,-5710.79383,0.0002008,2]
[363883901,1748909446370,-500.0,0.00020082,2]
[363883903,1748909446380,-253.88484872,0.00020082,2]
[363883905,1748909446391,-150.0,0.00020082,2]
[363883907,1748909446400,-151.0,0.00020098,2]
[363883909,1748909446409,-500.0,0.0002011,2]
[363883911,1748909446419,-150.0,0.0002011,2]
[363883913,1748909446431,-553.76,0.00020111,2]
[363883915,1748909446443,-165.95,0.00020113,2]
[363883917,1748909446453,-500.0,0.00020137,2]
[363883919,1748909446463,-250.0,0.00020137,2]
[363883921,1748909446474,-29999.99,0.00020145,2]
[363883923,1748909446484,-1740.6,0.00020149,2]
[363883925,1748909446495,-151.0,0.00020153,2]
[363883928,1748909446506,-500.0,0.00020164,2]
[363883930,1748909446517,-945.01,0.00020171,2]
[363883932,1748909446528,-150.0,0.00020174,2]
[363883934,1748909446538,-2110.01,0.00020181,2]
[363883936,1748909446549,-216.24,0.00020187,2]
[363883938,1748909446560,-500.0,0.00020192,2]
[363883940,1748909446571,-1271.41,0.00020217,2]
[363883942,1748909446581,-150.0,0.00020218,7]
[363883944,1748909446591,-500.0,0.00020219,2]
[363883946,1748909446601,-250.0,0.0002022,2]
[363883949,1748909446611,-2426.65,0.00020228,2]
[363883951,1748909446621,-5710.79382,0.0002024,2]
[363883953,1748909446631,-500.0,0.00020247,2]
[363883955,1748909446640,-2317.67,0.00020273,2]
[363883957,1748909446650,-257.0,0.00020274,2]
[363883959,1748909446661,-1233.82,0.00020319,2]
[363883961,1748909446671,-5710.79383,0.0002039,2]
[363883963,1748909446681,-150.0,0.00020471,2]
[363883965,1748909446691,-500.0,0.00020521,2]
[363883967,1748909446702,-500.0,0.00020521,2]
[363883969,1748909446713,-500.0,0.00020521,2]
[363883971,1748909446724,-1000.0,0.00020521,2]
[363883973,1748909446733,-1000.0,0.00020521,2]
[363883975,1748909446744,-902.10861251,0.00020521,2]
[363883977,1748909446754,-1003.42827177,0.00020521,2]
[363883979,1748909446764,-500.0,0.00020521,2]
[363883981,1748909446775,-452.75,0.00020543,2]
[363883983,1748909446784,-221.02,0.00020543,2]
[363883985,1748909446797,-1500.0,0.00020543,2]
[363883987,1748909446807,-500.0,0.00020575,2]
[363883989,1748909446818,-166.89,0.00020698,2]
[363883992,1748909446828,-925.96815169,0.000209,4]
[363883994,1748909446838,-500.0,0.00020973,2]
[363883996,1748909446848,-500.0,0.00020973,2]
[363883998,1748909446859,-183.87,0.00020986,2]
[363884000,1748909446868,-350.0,0.00021001,2]
[363884002,1748909446878,-250.0,0.00021001,2]
[363884004,1748909446888,-400.0,0.00021001,2]
[363884006,1748909446898,-250.0,0.00021002,2]
[363884008,1748909446909,-250.0,0.0002102,2]
[363884010,1748909446919,-1000.0,0.00021068,2]
[363884012,1748909446929,-1000.0,0.00021068,2]
[363884014,1748909446939,-176.32,0.00021091,2]
[363884016,1748909446952,-168.09,0.00021159,2]
[363884018,1748909446962,-165.95,0.00021231,2]
[363884021,1748909446972,-150.0,0.00021369,2]
[363884023,1748909446983,-1000.0,0.00021521,2]
[363884025,1748909446993,-1304.21,0.00021679,2]
[363884027,1748909447004,-1680.0,0.00021773,2]
[363884029,1748909447015,-925.96815157,0.00021797,6]
[363884031,1748909447025,-166.89,0.00021836,2]
[363884033,1748909447035,-150.0,0.00021841,2]
[363884035,1748909447045,-151.0,0.0002188,2]
[363884037,1748909447056,-7142.856,0.0002188,2]
[363884039,1748909447066,-1115.157653,0.0002188,2]
[363884041,1748909447076,-500.0,0.0002188,2]
[363884043,1748909447087,-500.0,0.0002188,2]
[363884074,1748909447377,-500.0,0.0002188,2]
[363884075,1748909447387,-500.0,0.0002188,2]
[363884076,1748909447397,-500.0,0.0002188,2]
[363884077,1748909447406,-500.0,0.0002188,2]
[363884078,1748909447416,-500.0,0.0002188,2]
[363884079,1748909447426,-377.34,0.0002188,2]
[363884080,1748909447435,-207.4,0.0002188,2]
[363884081,1748909447444,-1631.69529458,0.000219,2]
[363884082,1748909447454,-1631.69529454,0.000219,2]
[363884083,1748909447464,-1631.69529454,0.000219,2]
[363884084,1748909447474,-7407.141672,0.00021935,2]
[363884085,1748909447483,-7681.20591386,0.0002199,2]
[363884087,1748909447494,-1000.0,0.00022003,2]
[363884089,1748909447503,-1000.0,0.00022003,2]
[363884091,1748909447514,-1000.0,0.00022003,2]
[363884093,1748909447523,-1000.0,0.00022003,2]
[363884095,1748909447533,-1000.0,0.00022003,2]
[363884097,1748909447543,-1000.0,0.00022003,7]
[363884099,1748909447552,-1000.0,0.00022003,7]
[363884101,1748909447562,-1000.0,0.00022003,7]
[363884103,1748909447571,-1000.0,0.00022003,7]
[363884105,1748909447581,-1000.0,0.00022003,7]
[363884107,1748909447591,-500.0,0.00022031,2]
[363884109,1748909447601,-3609.68893739,0.00022045,2]
[363884110,1748909447614,-4355.72159529,0.00022045,2]
[363884111,1748909447625,-506.39834762,0.00022068,2]
[363884112,1748909447635,-8260.13072239,0.000221,2]
[363884113,1748909447645,-8565.75555911,0.00022155,2]
[363884114,1748909447654,-500.0,0.000222,2]
[363884115,1748909447664,-500.0,0.000222,2]
[363884116,1748909447674,-500.0,0.000222,2]
[363884117,1748909447683,-159.64519287,0.000222,2]
[363884118,1748909447694,-3960.80775072,0.0002221,2]
[363884119,1748909447715,-450.78855527,0.0002221,2]
[363884163,1748909547807,4016.91457742,0.00023,30]
[363884164,1748909792724,202.19,0.00013699,2]
[363884170,1748910311099,609.11154703,0.000154,2]
[363884171,1748910320574,2238.03197779,9e-05,2]
[363884172,1748910320597,2271.54872868,9e-05,2]
[363884173,1748910326474,575.59479614,0.000108,2]
[363884174,1748910326501,187.77576885,0.000108,2]
[363884175,1748910337412,1316.42643881,9e-05,2]
[363884176,1748910347773,-312.0585936,0.00019104,2]
[363884177,1748910350827,-263.76897487,0.00019104,2]
[363884178,1748910352875,-135.22079753,0.00019104,2]
[363884179,1748910354754,175.97920247,0.0001902,2]
[363884180,1748910356174,-208.01,0.0001902,2]
[363884181,1748910357758,-153.35,0.0001902,2]
[363884182,1748910361718,-154.97476655,0.0001902,2]
[363884183,1748910363102,464.233182,8e-05,2]
[363884184,1748910364552,-189.37329452,0.0001902,2]
[363884185,1748910366623,-160.0868148,0.0001902,2]
[363884186,1748910368746,-189.42625858,0.0001902,2]
[363884187,1748910371318,-250.0,0.0001902,2]
[363884188,1748910372807,-160.14915463,0.0001902,2]
[363884189,1748910374942,-171.51263129,0.0001902,2]
[363884190,1748910425741,160.149155,0.00018924,2]
[363884191,1748910436117,718.55898016,0.000189,3]
[363884192,1748910436140,398.44101984,0.000189,3]
[363884193,1748910475068,2448.70250498,0.0001,2]
[363884194,1748910475096,59.66621829,0.0001,2]
[363884195,1748910476347,1502.06562603,0.00015,2]
[363884196,1748910492445,296.76660557,0.0001439,2]
[363884202,1748910523023,153.7322348,0.000189,2]
[363884226,1748910632052,-5500.6867028,0.0001902,2]
[363884227,1748910632063,-662.78108365,0.00019303,2]
[363884228,1748910632076,-537.21891635,0.00019303,2]
[363884229,1748910632088,-2751.0,0.00019304,2]
[363884230,1748910632103,-922.56,0.00019351,2]
[363884231,1748910632114,-5562.0,0.000194,5]
[363884232,1748910632126,-363.23,0.00019401,2]
[363884233,1748910632137,-300.0,0.00019499,2]
[363884234,1748910632148,-480.14,0.00019586,2]
[363884235,1748910632159,-1467.84793263,0.0001987,2]
[363884236,1748910632174,-556.26072989,0.0001987,2]
[363884237,1748910632210,-306.721,0.0001987,2]
[363884238,1748910632224,-716.7954586,0.0001987,2]
[363884239,1748910632235,-153.04225253,0.00019873,2]
[363884240,1748910632246,-500.0,0.00019873,2]
[363884241,1748910632256,-159.65077736,0.00019873,2]
[363884242,1748910632267,-568.47688571,0.00019873,2]
[363884243,1748910632278,-500.0,0.00019873,2]
[363884244,1748910632289,-500.0,0.00019873,2]
[363884245,1748910632299,-507.84117552,0.00019873,2]
[363884246,1748910632310,-500.0,0.00019873,2]
[363884247,1748910632321,-500.0,0.00019873,2]
[363884248,1748910632332,-500.0,0.00019873,2]
[363884249,1748910632343,-899.80056519,0.00019889,2]
[363884250,1748910632375,-383.12875825,0.00019889,2]
[363884251,1748910632388,-4823.26460662,0.00019889,2]
[363884252,1748910632402,-415.87469936,0.00019889,2]
[363884253,1748910632414,-1825.97479114,0.00019889,2]
[363884254,1748910632427,-2651.19384868,0.00019889,2]
[363884255,1748910632440,-300.0,0.00019899,2]
[363884256,1748910632451,-74044.39070184,0.000199,2]
[363884257,1748910632462,-662.67921626,0.000199,3]
[363884258,1748910632472,-49469.9007567,0.000199,2]
[363884259,1748910632483,-220.52262368,0.000199,3]
[363884260,1748910632494,-273.70084027,0.000199,2]
[363884261,1748910632505,-157.26228945,0.000199,2]
[363884262,1748910632516,-607.55545516,0.000199,2]
[363884263,1748910632529,-154.70251397,0.000199,2]
[363884264,1748910632540,-152.98653759,0.0001991,2]
[363884265,1748910632552,-350.0,0.00019965,2]
[363884267,1748910632562,-250.0,0.00019965,2]
[363884269,1748910632573,-400.0,0.00019965,2]
[363884270,1748910632585,-500.0,0.00019973,2]
[363884271,1748910632597,-500.0,0.00019973,2]
[363884272,1748910632608,-500.0,0.00019973,2]
[363884273,1748910632619,-159.78207388,0.00019973,2]
[363884274,1748910632630,-500.0,0.00019973,2]
[363884275,1748910632641,-332.34365018,0.00019973,2]
[363884276,1748910632652,-500.0,0.00019973,2]
[363884278,1748910632663,-500.0,0.00019973,2]
[363884279,1748910632674,-500.0,0.00019973,2]
[363884281,1748910632685,-171.51038551,0.0001999,2]
[363884283,1748910632698,-171.51038551,0.0001999,2]
[363884285,1748910632709,-151.30969504,0.00019999,2]
[363884287,1748910632721,-180.81013051,0.00019999,2]
[363884289,1748910632732,-500.0,0.00019999,2]
[363884291,1748910632744,-325.63849045,0.00019999,2]
[363884293,1748910632754,-500.0,0.00019999,2]
[363884295,1748910632765,-311.77914766,0.00019999,2]
[363884298,1748910632776,-229.24495486,0.00019999,2]
[363884301,1748910632786,-500.0,0.00019999,2]
[363884304,1748910632797,-241.85957277,0.00019999,2]
[363884306,1748910632808,-500.0,0.00019999,2]
[363884308,1748910632819,-500.0,0.00019999,2]
[363884310,1748910632830,-500.0,0.00019999,2]
[363884311,1748910632841,-500.0,0.00019999,2]
[363884312,1748910632852,-331.66436052,0.00019999,2]
[363884313,1748910632862,-500.0,0.00019999,2]
[363884314,1748910632873,-500.0,0.00019999,2]
[363884315,1748910632885,-500.0,0.00019999,2]
[363884316,1748910632896,-565.11266023,0.00019999,2]
[363884317,1748910632907,-372.95462269,0.00019999,2]
[363884318,1748910632919,-500.0,0.00019999,2]
[363884319,1748910632930,-511.53301795,0.00019999,2]
[363884320,1748910632941,-500.0,0.00019999,2]
[363884321,1748910632951,-500.0,0.00019999,2]
[363884322,1748910632962,-500.0,0.00019999,2]
[363884323,1748910632973,-500.0,0.00019999,2]
[363884324,1748910632984,-744.86849397,0.00019999,2]
[363884325,1748910632994,-63153.56562801,0.00019999,2]
[363884326,1748910633009,-929.25693706,0.00019999,2]
[363884327,1748910633027,-2232.3887144,0.00019999,2]
[363884328,1748910633061,-1231.85132041,0.00019999,2]
[363884329,1748910633075,-578.59140228,0.00019999,2]
[363884330,1748910633090,-430.25086577,0.00019999,2]
[363884331,1748910637166,-179.48059256,0.00019203,2]
[363884348,1748910638504,-1726212.42888437,0.00019999,2]
[363884350,1748910638513,-7835136.17392034,0.0002,2]
[363884352,1748910638522,-50983.21866711,0.0002,4]
[363884354,1748910638532,-3562443.91259818,0.0002,2]
[363884536,1748910640498,-5.68162669,0.0002,2]
[363884541,1748910640531,-685.57368769,0.0002,2]
[363884553,1748910640634,-15113.51791826,0.0002,2]
[363884559,1748910640692,-4740.620204,0.0002,2]
[363884562,1748910640703,-679557.21391084,0.0002,2]
[363884564,1748910640712,-4000.0,0.0002,4]
[363884566,1748910640721,-157.26228944,0.0002,2]
[363884568,1748910640731,-1030.10733104,0.000201,2]
[363884569,1748910640742,-202.19,0.00020187,2]
[363884572,1748910640751,-500.0,0.00020421,2]
[363884573,1748910640760,-500.0,0.00020421,2]
[363884575,1748910640770,-1000.0,0.00020521,2]
[363884578,1748910640779,-1000.0,0.00020521,2]
[363884579,1748910640788,-1000.0,0.00020521,2]
[363884581,1748910640797,-1030.10733095,0.00020693,3]
[363884584,1748910640807,-400.0,0.00020762,2]
[363884586,1748910640816,-151.0,0.00020812,2]
[363884587,1748910640825,-19638.74,0.00020824,2]
[363884589,1748910640835,-16984.35,0.00020824,2]
[363884591,1748910640844,-500.0,0.00020873,2]
[363884594,1748910640854,-300.9,0.00020926,2]
[363884595,1748910640864,-301.29,0.00020926,2]
[363884597,1748910640873,-302.76,0.00020926,2]
[363884600,1748910640882,-305.04,0.00020926,2]
[363884602,1748910640892,-303.41,0.00020926,2]
[363884603,1748910640901,-302.32,0.00020926,2]
[363884605,1748910640910,-301.25,0.00020926,2]
[363884607,1748910640920,-300.34,0.00020926,2]
[363884609,1748910640929,-303.05,0.00020929,2]
[363884611,1748910640938,-302.33,0.00020929,2]
[363884613,1748910640949,-304.64,0.0002093,2]
[363884615,1748910640958,-300.92,0.0002093,2]
[363884617,1748910640967,-303.54,0.0002093,2]
[363884619,1748910640976,-300.83,0.0002093,2]
[363884621,1748910640986,-301.42,0.0002093,2]
[363884623,1748910640995,-300.34,0.0002093,2]
[363884625,1748910641005,-305.33,0.0002093,2]
[363884627,1748910641015,-303.92,0.0002093,2]
[363884629,1748910641024,-303.76,0.0002093,2]
[363884631,1748910641033,-304.79,0.0002093,2]
[363884633,1748910641043,-4000.0,0.00021,4]
[363884635,1748910641051,-301.19,0.00021,2]
[363884637,1748910641060,-1500.0,0.00021068,2]
[363884639,1748910641070,-1500.0,0.00021068,2]
[363884641,1748910641079,-1500.0,0.00021068,2]
[363884643,1748910641089,-1680.0,0.00021136,2]
[363884645,1748910641101,-420.0,0.00021243,2]
[363884647,1748910641110,-1000.0,0.00021399,2]
[363884649,1748910641119,-200.0,0.00021416,2]
[363884651,1748910641128,-166.02,0.00021442,2]
[363884653,1748910641138,-250.0,0.00021477,2]
[363884655,1748910641147,-1030.10733095,0.00021486,5]
[363884656,1748910641156,-300.92,0.00021509,2]
[363884658,1748910641165,-203.49,0.0002155,2]
[363884660,1748910641176,-2000.0,0.00021616,2]
[363884663,1748910641186,-2000.0,0.00021616,2]
[363884665,1748910641199,-500.0,0.00021625,2]
[363884667,1748910641208,-302.57,0.00021726,2]
[363884669,1748910641218,-301.35,0.00021726,2]
[363884671,1748910641227,-301.22,0.00021726,2]
[363884673,1748910641236,-150.0,0.0002174,7]
[363884675,1748910641245,-536.809113,0.00021765,3]
[363884676,1748910641254,-1137.49,0.00021868,2]
[363884678,1748910641263,-7142.856,0.0002188,2]
[363884681,1748910641273,-1115.157653,0.0002188,2]
[363884682,1748910641283,-207.4,0.0002188,2]
[363884684,1748910641291,-500.0,0.0002188,2]
[363884686,1748910641301,-340.0,0.0002188,2]
[363884688,1748910641310,-151.0,0.0002188,2]
[363884691,1748910641321,-1386.94100053,0.000219,2]
[363884692,1748910641331,-1386.94100035,0.000219,2]
[363884694,1748910641340,-1386.94100035,0.000219,2]
[363884696,1748910641350,-1386.94100035,0.000219,2]
[363884698,1748910641360,-1386.94100035,0.000219,2]
[363884700,1748910641369,-1386.94100035,0.000219,2]
[363884703,1748910641380,-1386.94100035,0.000219,2]
[363884704,1748910641390,-1386.94100035,0.000219,2]
[363884706,1748910641399,-1386.94100035,0.000219,2]
[363884708,1748910641409,-1386.94100035,0.000219,2]
[363884710,1748910641418,-1386.94100035,0.000219,2]
[363884712,1748910641428,-1386.94100035,0.000219,2]
[363884714,1748910641438,-1386.94100035,0.000219,2]
[363884716,1748910641453,-1386.94100035,0.000219,2]
[363884719,1748910641463,-1386.94100035,0.000219,2]
[363884720,1748910641472,-1386.94100035,0.000219,2]
[363884722,1748910641482,-1386.94100035,0.000219,2]
[363884724,1748910641492,-1386.94100035,0.000219,2]
[363884726,1748910641502,-1386.94100035,0.000219,2]
[363884728,1748910641511,-1386.94100035,0.000219,2]
[363884730,1748910641520,-350.0,0.00021924,2]
[363884732,1748910641529,-250.0,0.00021924,2]
[363884734,1748910641540,-400.0,0.00021924,2]
[363884736,1748910641550,-7407.141672,0.00021935,2]
[363884738,1748910641560,-7681.20591386,0.0002199,2]
[363884740,1748910641569,-35923.82,0.00022,7]
[363884742,1748910641578,-4000.0,0.00022,4]
[363884744,1748910641587,-480.14,0.00022035,2]
[363884746,1748910641597,-6337.05139751,0.00022045,2]
[363884748,1748910641606,-849.13214526,0.00022063,2]
[363884750,1748910641615,-250.0,0.00022129,2]
[363884752,1748910641626,-2131.53503806,0.00022164,2]
[363884754,1748910641635,-2500.0,0.00022164,2]
[363884756,1748910641644,-1918.3948981,0.00022206,2]
[363884758,1748910641653,-48400.0467213,0.00022206,2]
[363884760,1748910641663,-3520.65,0.0002221,2]
[363884762,1748910641672,-5599.1214729,0.00022221,2]
[363884764,1748910641682,-150.0,0.00022273,2]
[363884766,1748910641694,-217.25641255,0.00022277,2]
[363884768,1748910641704,-1030.10733095,0.00022279,6]
[363884770,1748910641713,-150.0,0.000223,2]
[363884772,1748910641723,-168.09,0.00022323,2]
[363884775,1748910641732,-200.0,0.00022328,2]
[363884777,1748910641745,-165.95,0.00022348,2]
[363884779,1748910641754,-23900.0,0.00022375,2]
[363884781,1748910641764,-254.76,0.00022422,2]
[363884783,1748910641774,-927.48562788,0.00022712,2]
[363884785,1748910641783,-500.0,0.00022973,2]
[363884787,1748910641792,-166.89,0.00022975,2]
[363884789,1748910641801,-45271.13945601,0.00023,2]
[363884791,1748910641810,-200.0,0.00023,2]
[363884793,1748910641819,-200.0,0.00023,2]
[363884795,1748910641829,-200.0,0.00023,2]
[363884797,1748910641838,-1193.0,0.00023,2]
[363884799,1748910641847,-1193.0,0.00023,2]
[363884801,1748910641857,-1193.0,0.00023,2]
[363884803,1748910641866,-1193.0,0.00023,2]
[363884805,1748910641875,-672.77117613,0.00023,2]
[363884807,1748910641886,-200.0,0.00023,2]
[363884809,1748910641895,-300.0,0.00023,2]
[363884811,1748910641904,-4000.0,0.00023,4]
[363884813,1748910641914,-200.0,0.00023,2]
[363884815,1748910641923,-1030.10733095,0.00023072,8]
[363884817,1748910641933,-274.2,0.000231,2]
[363884819,1748910641945,-1714.0,0.00023142,2]
[363884821,1748910641954,-587.0,0.00023143,2]
[363884823,1748910641963,-200.0,0.0002323,2]
[363884825,1748910641973,-200.0,0.0002323,2]
[363884827,1748910641983,-200.0,0.0002323,2]
[363884829,1748910641993,-200.0,0.0002323,2]
[363884831,1748910642002,-215.0738,0.00023249,2]
[363884833,1748910642011,-156.587,0.00023249,2]
[363884835,1748910642022,-200.0,0.00023462,2]